[Event "Titled Tuesday Blitz January 17 Late 2023"]
[White "Czernek, Tymon"]
[Black "Dominguez Perez, Leinier"]
[WhiteFideId "1199510"]
[BlackFideId "3503240"]
[WhiteElo "2314"]
[BlackElo "2739"]
[Result "0-1"]
[Round "07"]
[TimeControl "180+2"]
[Date "2023.01.17"]
[WhiteClock "0:00:06"]
[BlackClock "0:00:11"]

1. e4 {[%clk 0:03:00]}  Nf6 {[%clk 0:02:59]} 2. e5 {[%clk 0:02:59]}  Nd5 {[%clk 0:02:59]} 3. d4 {[%clk 0:02:59]}  d6 {[%clk 0:03:00]} 4. Nf3 {[%clk 0:02:59]}  dxe5 {[%clk 0:03:00]} 5. Nxe5 {[%clk 0:03:00]}  c6 {[%clk 0:03:00]} 6. Be2 {[%clk 0:02:58]}  Bf5 {[%clk 0:02:59]} 7. O-O {[%clk 0:02:58]}  Nd7 {[%clk 0:03:00]} 8. Nf3 {[%clk 0:02:56]}  e6 {[%clk 0:02:59]} 9. c4 {[%clk 0:02:56]}  N5f6 {[%clk 0:02:56]} 10. Nc3 {[%clk 0:02:56]}  Bd6 {[%clk 0:02:55]} 11. h3 {[%clk 0:02:55]}  O-O {[%clk 0:02:54]} 12. Nh4 {[%clk 0:02:54]}  Bg6 {[%clk 0:02:54]} 13. Nxg6 {[%clk 0:02:54]}  hxg6 {[%clk 0:02:54]} 14. Bg5 {[%clk 0:02:53]}  Qc7 {[%clk 0:02:54]} 15. Rc1 {[%clk 0:02:49]}  Bh2+ {[%clk 0:02:53]} 16. Kh1 {[%clk 0:02:49]}  Bf4 {[%clk 0:02:53]} 17. Bxf4 {[%clk 0:02:47]}  Qxf4 {[%clk 0:02:54]} 18. Qd3 {[%clk 0:02:40]}  Rad8 {[%clk 0:02:51]} 19. Qe3 {[%clk 0:02:40]}  Qc7 {[%clk 0:02:41]} 20. Rfd1 {[%clk 0:02:37]}  a6 {[%clk 0:02:39]} 21. b3 {[%clk 0:02:36]}  Rfe8 {[%clk 0:02:36]} 22. f4 {[%clk 0:02:36]}  Qa5 {[%clk 0:02:23]} 23. Bf3 {[%clk 0:02:33]}  Kf8 {[%clk 0:02:07]} 24. Qf2 {[%clk 0:02:28]}  Ng8 {[%clk 0:02:01]} 25. Ne4 {[%clk 0:02:24]}  Ndf6 {[%clk 0:01:49]} 26. Nc5 {[%clk 0:02:24]}  Qc7 {[%clk 0:01:48]} 27. g3 {[%clk 0:02:21]}  Ne7 {[%clk 0:01:47]} 28. Re1 {[%clk 0:02:10]}  Nf5 {[%clk 0:01:38]} 29. Rcd1 {[%clk 0:02:10]}  a5 {[%clk 0:01:35]} 30. g4 {[%clk 0:02:02]}  Ne7 {[%clk 0:01:29]} 31. Bg2 {[%clk 0:01:45]}  Kg8 {[%clk 0:01:24]} 32. Re5 {[%clk 0:01:40]}  Nd7 {[%clk 0:01:16]} 33. Nxd7 {[%clk 0:01:38]}  Rxd7 {[%clk 0:01:17]} 34. Rde1 {[%clk 0:01:24]}  Red8 {[%clk 0:01:11]} 35. R5e4 {[%clk 0:01:24]}  Qb6 {[%clk 0:01:09]} 36. Qh4 {[%clk 0:01:15]}  Qb4 {[%clk 0:00:57]} 37. Qf2 {[%clk 0:01:09]}  b5 {[%clk 0:00:54]} 38. d5 {[%clk 0:01:05]}  exd5 {[%clk 0:00:39]} 39. cxd5 {[%clk 0:01:02]}  Qd6 {[%clk 0:00:30]} 40. dxc6 {[%clk 0:01:02]}  Rc7 {[%clk 0:00:29]} 41. Re5 {[%clk 0:00:53]}  a4 {[%clk 0:00:23]} 42. f5 {[%clk 0:00:49]}  gxf5 {[%clk 0:00:22]} 43. gxf5 {[%clk 0:00:50]}  axb3 {[%clk 0:00:21]} 44. axb3 {[%clk 0:00:49]}  Qf6 {[%clk 0:00:19]} 45. Qb6 {[%clk 0:00:35]}  Rdc8 {[%clk 0:00:19]} 46. Qxb5 {[%clk 0:00:26]}  Nxc6 {[%clk 0:00:16]} 47. Re8+ {[%clk 0:00:26]}  Rxe8 {[%clk 0:00:15]} 48. Rxe8+ {[%clk 0:00:27]}  Kh7 {[%clk 0:00:16]} 49. Qe2 {[%clk 0:00:24]}  Qg5 {[%clk 0:00:16]} 50. f6 {[%clk 0:00:17]}  Nd4 {[%clk 0:00:14]} 51. Qd3+ {[%clk 0:00:08]}  Nf5 {[%clk 0:00:15]} 52. Re1 {[%clk 0:00:06]}  g6 {[%clk 0:00:13]} 53. Qd5 {[%clk 0:00:03]}  Qxf6 {[%clk 0:00:12]} 54. Kh2 {[%clk 0:00:02]}  Rc2 {[%clk 0:00:10]} 55. Qe4 {[%clk 0:00:01]}  Qg5 {[%clk 0:00:10]} 56. Qxc2 {[%clk 0:00:01]}  Qg3+ {[%clk 0:00:10]} 57. Kh1 {[%clk 0:00:02]}  Qxe1+ {[%clk 0:00:11]} 58. Kh2 {[%clk 0:00:03]}  Qe5+ {[%clk 0:00:11]} 59. Kh1 {[%clk 0:00:03]}  Ng3+ {[%clk 0:00:10]} 60. Kg1 {[%clk 0:00:04]}  Nf5 {[%clk 0:00:08]} 61. Qc4 {[%clk 0:00:04]}  Qe3+ {[%clk 0:00:08]} 62. Kh2 {[%clk 0:00:04]}  Kg7 {[%clk 0:00:08]} 63. b4 {[%clk 0:00:03]}  Qg3+ {[%clk 0:00:08]} 64. Kg1 {[%clk 0:00:04]}  Qxg2+ {[%clk 0:00:09]} 65. Kxg2 {[%clk 0:00:04]}  Ne3+ {[%clk 0:00:10]} 66. Kf3 {[%clk 0:00:05]}  Nxc4 {[%clk 0:00:11]} 67. Ke4 {[%clk 0:00:06]}  f5+ {[%clk 0:00:11]} 68. Kd5 {[%clk 0:00:06]}  Na3 {[%clk 0:00:11]} 69. Ke5 {[%clk 0:00:06]}  Kh6 {[%clk 0:00:11]} 70. Kf6 {[%clk 0:00:05]}  Kh5 {[%clk 0:00:11]} 71. Ke5 {[%clk 0:00:05]}  Kh4 {[%clk 0:00:11]} 72. Kf6 {[%clk 0:00:05]}  f4 {[%clk 0:00:11]} 73. Kxg6 {[%clk 0:00:06]}  f3 {[%clk 0:00:11]} 0-1


[Site "https://www.chess.com"]

[Event "Titled Tuesday Blitz January 17 Late 2023"]
[White "Mahdavi, Reza"]
[Black "Sielecki, Christof"]
[WhiteFideId "12595926"]
[BlackFideId "4620437"]
[WhiteElo "2339"]
[BlackElo "2419"]
[Result "0-1"]
[Round "07"]
[TimeControl "180+2"]
[Date "2023.01.17"]
[WhiteClock "0:01:30"]
[BlackClock "0:01:12"]

1. e4 {[%clk 0:03:00]}  c5 {[%clk 0:02:59]} 2. Nf3 {[%clk 0:02:53]}  a6 {[%clk 0:02:59]} 3. c3 {[%clk 0:02:53]}  d5 {[%clk 0:02:59]} 4. exd5 {[%clk 0:02:53]}  Qxd5 {[%clk 0:03:00]} 5. d4 {[%clk 0:02:54]}  e6 {[%clk 0:03:00]} 6. Be3 {[%clk 0:02:54]}  Nd7 {[%clk 0:03:00]} 7. c4 {[%clk 0:02:53]}  Qc6 {[%clk 0:03:00]} 8. d5 {[%clk 0:02:53]}  exd5 {[%clk 0:03:00]} 9. cxd5 {[%clk 0:02:54]}  Qc7 {[%clk 0:03:01]} 10. Nc3 {[%clk 0:02:53]}  Ngf6 {[%clk 0:03:01]} 11. a4 {[%clk 0:02:51]}  b6 {[%clk 0:03:01]} 12. Bd3 {[%clk 0:02:48]}  Bd6 {[%clk 0:03:00]} 13. O-O {[%clk 0:02:48]}  O-O {[%clk 0:03:00]} 14. h3 {[%clk 0:02:49]}  Bb7 {[%clk 0:02:59]} 15. Bc2 {[%clk 0:02:47]}  Rfe8 {[%clk 0:02:53]} 16. Nh4 {[%clk 0:02:47]}  g6 {[%clk 0:02:45]} 17. Nf3 {[%clk 0:02:47]}  Ne5 {[%clk 0:02:30]} 18. Nxe5 {[%clk 0:02:43]}  Bxe5 {[%clk 0:02:29]} 19. Bb3 {[%clk 0:02:40]}  c4 {[%clk 0:02:23]} 20. Ba2 {[%clk 0:02:33]}  Rad8 {[%clk 0:02:18]} 21. Rc1 {[%clk 0:02:22]}  Nxd5 {[%clk 0:02:10]} 22. Nxd5 {[%clk 0:02:19]}  Bxd5 {[%clk 0:02:06]} 23. Qg4 {[%clk 0:02:16]}  Bxb2 {[%clk 0:01:54]} 24. Rxc4 {[%clk 0:02:11]}  Bxc4 {[%clk 0:01:51]} 25. Bxc4 {[%clk 0:02:11]}  Bd4 {[%clk 0:01:27]} 26. Bxf7+ {[%clk 0:01:56]}  Qxf7 {[%clk 0:01:26]} 27. Bxd4 {[%clk 0:01:57]}  Qc4 {[%clk 0:01:19]} 28. Rd1 {[%clk 0:01:52]}  Qe2 {[%clk 0:01:15]} 29. Qxe2 {[%clk 0:01:29]}  Rxe2 {[%clk 0:01:14]} 30. f3 {[%clk 0:01:30]}  Ra2 {[%clk 0:01:12]} 0-1


[Site "https://www.chess.com"]

[Event "Titled Tuesday Blitz January 17 Late 2023"]
[White "Yurovskykh, Oleksandr"]
[Black "Fernandez Guillen, Ernesto J."]
[WhiteFideId "14134020"]
[BlackFideId "3512428"]
[WhiteElo "2328"]
[BlackElo "2477"]
[Result "0-1"]
[Round "07"]
[TimeControl "180+2"]
[Date "2023.01.17"]
[WhiteClock "0:00:01"]
[BlackClock "0:00:03"]

1. d4 {[%clk 0:03:00]}  Nf6 {[%clk 0:02:53]} 2. Nf3 {[%clk 0:03:00]}  g6 {[%clk 0:02:50]} 3. c4 {[%clk 0:02:58]}  Bg7 {[%clk 0:02:50]} 4. Nc3 {[%clk 0:02:59]}  d6 {[%clk 0:02:48]} 5. e4 {[%clk 0:02:53]}  O-O {[%clk 0:02:49]} 6. Be2 {[%clk 0:02:54]}  e5 {[%clk 0:02:50]} 7. dxe5 {[%clk 0:02:52]}  dxe5 {[%clk 0:02:51]} 8. Qxd8 {[%clk 0:02:52]}  Rxd8 {[%clk 0:02:49]} 9. Bg5 {[%clk 0:02:53]}  c6 {[%clk 0:02:47]} 10. Nxe5 {[%clk 0:02:50]}  Re8 {[%clk 0:02:46]} 11. O-O-O {[%clk 0:02:47]}  Nxe4 {[%clk 0:02:36]} 12. Nxe4 {[%clk 0:02:38]}  Bxe5 {[%clk 0:02:36]} 13. Nf6+ {[%clk 0:02:36]}  Bxf6 {[%clk 0:02:35]} 14. Bxf6 {[%clk 0:02:37]}  Be6 {[%clk 0:02:35]} 15. b3 {[%clk 0:02:24]}  Nd7 {[%clk 0:02:32]} 16. Bc3 {[%clk 0:02:20]}  a5 {[%clk 0:02:30]} 17. Rhe1 {[%clk 0:02:13]}  a4 {[%clk 0:02:30]} 18. b4 {[%clk 0:02:14]}  Nb6 {[%clk 0:02:29]} 19. c5 {[%clk 0:02:06]}  Nd5 {[%clk 0:02:29]} 20. Bd2 {[%clk 0:02:03]}  a3 {[%clk 0:02:18]} 21. Bd3 {[%clk 0:01:43]}  f6 {[%clk 0:02:11]} 22. Bc4 {[%clk 0:01:35]}  Kf7 {[%clk 0:01:44]} 23. Bb3 {[%clk 0:01:11]}  Nc7 {[%clk 0:01:41]} 24. Bxe6+ {[%clk 0:01:02]}  Rxe6 {[%clk 0:01:42]} 25. Rxe6 {[%clk 0:01:00]}  Kxe6 {[%clk 0:01:42]} 26. Bc3 {[%clk 0:01:00]}  Nd5 {[%clk 0:01:41]} 27. Kc2 {[%clk 0:00:59]}  h5 {[%clk 0:01:38]} 28. Kb3 {[%clk 0:00:57]}  Kf5 {[%clk 0:01:36]} 29. Re1 {[%clk 0:00:47]}  g5 {[%clk 0:01:26]} 30. Bd2 {[%clk 0:00:43]}  g4 {[%clk 0:01:21]} 31. Bc1 {[%clk 0:00:42]}  h4 {[%clk 0:01:13]} 32. Bxa3 {[%clk 0:00:34]}  h3 {[%clk 0:01:13]} 33. gxh3 {[%clk 0:00:29]}  gxh3 {[%clk 0:01:14]} 34. Rg1 {[%clk 0:00:27]}  Re8 {[%clk 0:01:11]} 35. Rg3 {[%clk 0:00:25]}  Nf4 {[%clk 0:01:07]} 36. Rf3 {[%clk 0:00:17]}  Kg4 {[%clk 0:01:04]} 37. Rg3+ {[%clk 0:00:17]}  Kf5 {[%clk 0:01:00]} 38. Rf3 {[%clk 0:00:18]}  Kg4 {[%clk 0:00:52]} 39. Rg3+ {[%clk 0:00:18]}  Kh4 {[%clk 0:00:52]} 40. Rf3 {[%clk 0:00:17]}  Re4 {[%clk 0:00:45]} 41. Bc1 {[%clk 0:00:16]}  Nd5 {[%clk 0:00:46]} 42. Bd2 {[%clk 0:00:14]}  Rg4 {[%clk 0:00:46]} 43. Bc3 {[%clk 0:00:11]}  Rg2 {[%clk 0:00:43]} 44. a4 {[%clk 0:00:05]}  Kg4 {[%clk 0:00:26]} 45. Rg3+ {[%clk 0:00:05]}  Rxg3 {[%clk 0:00:26]} 46. fxg3 {[%clk 0:00:06]}  Kf3 {[%clk 0:00:27]} 47. b5 {[%clk 0:00:01]}  Kg2 {[%clk 0:00:24]} 48. bxc6 {[%clk 0:00:02]}  bxc6 {[%clk 0:00:25]} 49. a5 {[%clk 0:00:02]}  Kxh2 {[%clk 0:00:18]} 50. a6 {[%clk 0:00:03]}  Kg2 {[%clk 0:00:12]} 51. Ba5 {[%clk 0:00:02]}  h2 {[%clk 0:00:12]} 52. a7 {[%clk 0:00:03]}  h1=Q {[%clk 0:00:12]} 53. a8=Q {[%clk 0:00:03]}  Qb1+ {[%clk 0:00:10]} 54. Kc4 {[%clk 0:00:04]}  Qb5+ {[%clk 0:00:05]} 55. Kd4 {[%clk 0:00:04]}  Qb2+ {[%clk 0:00:05]} 56. Ke4 {[%clk 0:00:04]}  Qe5+ {[%clk 0:00:05]} 57. Kd3 {[%clk 0:00:03]}  Qe3+ {[%clk 0:00:05]} 58. Kc2 {[%clk 0:00:03]}  Qxc5+ {[%clk 0:00:05]} 59. Kd3 {[%clk 0:00:03]}  Qe3+ {[%clk 0:00:03]} 60. Kc2 {[%clk 0:00:03]}  Qe2+ {[%clk 0:00:03]} 61. Kb3 {[%clk 0:00:02]}  Qb5+ {[%clk 0:00:03]} 62. Kc2 {[%clk 0:00:03]}  Qc4+ {[%clk 0:00:03]} 63. Kd2 {[%clk 0:00:03]}  Kxg3 {[%clk 0:00:03]} 64. Qa7 {[%clk 0:00:03]}  Kf3 {[%clk 0:00:03]} 65. Bd8 {[%clk 0:00:01]}  Qe2+ {[%clk 0:00:03]} 66. Kc1 {[%clk 0:00:01]}  Qe3+ {[%clk 0:00:03]} 67. Kb1 {[%clk 0:00:01]}  Qxa7 {[%clk 0:00:03]} 0-1


[Site "https://www.chess.com"]

[Event "Titled Tuesday Blitz January 17 Late 2023"]
[White "Tanenbaum, Zachary"]
[Black "Bilan, Danila"]
[WhiteFideId "2060850"]
[BlackFideId "24161918"]
[WhiteElo "2261"]
[BlackElo "2303"]
[Result "1-0"]
[Round "07"]
[TimeControl "180+2"]
[Date "2023.01.17"]
[WhiteClock "0:00:17"]
[BlackClock "0:00:02"]

1. e4 {[%clk 0:03:00]}  c6 {[%clk 0:02:59]} 2. d4 {[%clk 0:03:00]}  d5 {[%clk 0:03:00]} 3. exd5 {[%clk 0:03:01]}  cxd5 {[%clk 0:03:00]} 4. Bd3 {[%clk 0:03:01]}  Nc6 {[%clk 0:02:59]} 5. c3 {[%clk 0:03:02]}  Qc7 {[%clk 0:03:00]} 6. h3 {[%clk 0:03:00]}  g6 {[%clk 0:03:00]} 7. Qc2 {[%clk 0:02:57]}  Nf6 {[%clk 0:02:26]} 8. Nf3 {[%clk 0:02:57]}  Bg7 {[%clk 0:02:26]} 9. O-O {[%clk 0:02:57]}  O-O {[%clk 0:02:25]} 10. Re1 {[%clk 0:02:46]}  Nh5 {[%clk 0:02:07]} 11. Bg5 {[%clk 0:02:26]}  Nf4 {[%clk 0:02:00]} 12. Bf1 {[%clk 0:02:25]}  Bf5 {[%clk 0:01:54]} 13. Qd2 {[%clk 0:02:24]}  Ne6 {[%clk 0:01:45]} 14. Bh6 {[%clk 0:02:22]}  Bxh6 {[%clk 0:01:41]} 15. Qxh6 {[%clk 0:02:23]}  Qf4 {[%clk 0:01:42]} 16. Qh4 {[%clk 0:02:14]}  Qxh4 {[%clk 0:01:18]} 17. Nxh4 {[%clk 0:02:14]}  Nf4 {[%clk 0:01:14]} 18. Nxf5 {[%clk 0:02:12]}  gxf5 {[%clk 0:01:15]} 19. Nd2 {[%clk 0:02:04]}  e6 {[%clk 0:01:14]} 20. Nb3 {[%clk 0:01:55]}  Kg7 {[%clk 0:00:50]} 21. a4 {[%clk 0:01:55]}  a5 {[%clk 0:00:37]} 22. Nc5 {[%clk 0:01:54]}  b6 {[%clk 0:00:37]} 23. Nd7 {[%clk 0:01:51]}  Rfd8 {[%clk 0:00:35]} 24. Bb5 {[%clk 0:01:51]}  Na7 {[%clk 0:00:25]} 25. Nxb6 {[%clk 0:01:45]}  Rab8 {[%clk 0:00:24]} 26. Nd7 {[%clk 0:01:45]}  Rxb5 {[%clk 0:00:18]} 27. axb5 {[%clk 0:01:46]}  Rxd7 {[%clk 0:00:19]} 28. Rxa5 {[%clk 0:01:46]}  Rb7 {[%clk 0:00:19]} 29. b6 {[%clk 0:01:38]}  Nc8 {[%clk 0:00:18]} 30. Rc5 {[%clk 0:01:18]}  Nd3 {[%clk 0:00:10]} 31. Re3 {[%clk 0:01:12]}  Nxc5 {[%clk 0:00:08]} 32. dxc5 {[%clk 0:01:13]}  Ne7 {[%clk 0:00:09]} 33. b4 {[%clk 0:01:11]}  Kf6 {[%clk 0:00:09]} 34. Re2 {[%clk 0:01:01]}  Nc8 {[%clk 0:00:07]} 35. Ra2 {[%clk 0:00:44]}  Nxb6 {[%clk 0:00:06]} 36. cxb6 {[%clk 0:00:44]}  Rxb6 {[%clk 0:00:07]} 37. Kf1 {[%clk 0:00:45]}  Rc6 {[%clk 0:00:08]} 38. Ra3 {[%clk 0:00:44]}  Ke5 {[%clk 0:00:07]} 39. Ke2 {[%clk 0:00:44]}  Rc4 {[%clk 0:00:05]} 40. Kd3 {[%clk 0:00:42]}  h5 {[%clk 0:00:03]} 41. Ra7 {[%clk 0:00:39]}  Kf6 {[%clk 0:00:02]} 42. b5 {[%clk 0:00:38]}  Rc5 {[%clk 0:00:03]} 43. b6 {[%clk 0:00:34]}  Rb5 {[%clk 0:00:03]} 44. b7 {[%clk 0:00:35]}  Ke5 {[%clk 0:00:02]} 45. h4 {[%clk 0:00:25]}  f6 {[%clk 0:00:02]} 46. f4+ {[%clk 0:00:17]}  Kxf4 {[%clk 0:00:02]} 47. Ra4+ {[%clk 0:00:17]} 1-0


[Site "https://www.chess.com"]

[Event "Titled Tuesday Blitz January 17 Late 2023"]
[White "Timmermans, Mark"]
[Black "Al-Tarboush, Ward"]
[WhiteFideId "1026399"]
[BlackFideId "7601450"]
[WhiteElo "2392"]
[BlackElo "2256"]
[Result "1-0"]
[Round "07"]
[TimeControl "180+2"]
[Date "2023.01.17"]
[WhiteClock "0:00:13"]
[BlackClock "0:00:39"]

1. e4 {[%clk 0:02:57]}  c5 {[%clk 0:02:59]} 2. Nf3 {[%clk 0:02:56]}  Nc6 {[%clk 0:02:59]} 3. d4 {[%clk 0:02:56]}  cxd4 {[%clk 0:02:59]} 4. Nxd4 {[%clk 0:02:57]}  Nf6 {[%clk 0:03:00]} 5. Nc3 {[%clk 0:02:57]}  e5 {[%clk 0:03:00]} 6. Ndb5 {[%clk 0:02:58]}  d6 {[%clk 0:03:01]} 7. Bg5 {[%clk 0:02:51]}  a6 {[%clk 0:03:01]} 8. Na3 {[%clk 0:02:50]}  b5 {[%clk 0:03:01]} 9. Bxf6 {[%clk 0:02:51]}  gxf6 {[%clk 0:03:00]} 10. Nd5 {[%clk 0:02:49]}  f5 {[%clk 0:03:00]} 11. c3 {[%clk 0:02:48]}  fxe4 {[%clk 0:03:00]} 12. Bxb5 {[%clk 0:02:45]}  axb5 {[%clk 0:02:59]} 13. Nxb5 {[%clk 0:02:46]}  Ra7 {[%clk 0:02:46]} 14. Nxa7 {[%clk 0:02:39]}  Nxa7 {[%clk 0:02:47]} 15. Qa4+ {[%clk 0:02:38]}  Bd7 {[%clk 0:02:47]} 16. Qxa7 {[%clk 0:02:38]}  Bh6 {[%clk 0:02:41]} 17. Qc7 {[%clk 0:02:22]}  Qxc7 {[%clk 0:02:30]} 18. Nxc7+ {[%clk 0:02:22]}  Ke7 {[%clk 0:02:31]} 19. Nd5+ {[%clk 0:02:22]}  Ke6 {[%clk 0:02:29]} 20. Nc7+ {[%clk 0:02:22]}  Ke7 {[%clk 0:02:29]} 21. O-O {[%clk 0:02:17]}  Rg8 {[%clk 0:02:29]} 22. Rfd1 {[%clk 0:02:16]}  Bg4 {[%clk 0:02:28]} 23. Re1 {[%clk 0:02:03]}  Bf3 {[%clk 0:02:26]} 24. g3 {[%clk 0:01:59]}  Bg5 {[%clk 0:02:27]} 25. c4 {[%clk 0:01:52]}  h5 {[%clk 0:02:26]} 26. Nd5+ {[%clk 0:01:52]}  Ke6 {[%clk 0:02:26]} 27. Nc3 {[%clk 0:01:53]}  f5 {[%clk 0:02:25]} 28. a4 {[%clk 0:01:45]}  h4 {[%clk 0:02:25]} 29. a5 {[%clk 0:01:45]}  e3 {[%clk 0:02:10]} 30. fxe3 {[%clk 0:01:10]}  hxg3 {[%clk 0:02:09]} 31. hxg3 {[%clk 0:01:11]}  Bh4 {[%clk 0:02:07]} 32. Ne2 {[%clk 0:01:08]}  Bg5 {[%clk 0:01:50]} 33. Kf2 {[%clk 0:01:02]}  Ba8 {[%clk 0:01:48]} 34. b4 {[%clk 0:00:54]}  Rh8 {[%clk 0:01:47]} 35. Nf4+ {[%clk 0:00:55]}  Kf7 {[%clk 0:01:44]} 36. Nd5 {[%clk 0:00:55]}  Rh2+ {[%clk 0:01:43]} 37. Kg1 {[%clk 0:00:55]}  Rc2 {[%clk 0:01:41]} 38. a6 {[%clk 0:00:38]}  Bd8 {[%clk 0:01:35]} 39. Rec1 {[%clk 0:00:31]}  Rb2 {[%clk 0:01:34]} 40. Rab1 {[%clk 0:00:30]}  Ra2 {[%clk 0:01:34]} 41. b5 {[%clk 0:00:30]}  Bxd5 {[%clk 0:01:33]} 42. cxd5 {[%clk 0:00:30]}  Bb6 {[%clk 0:01:34]} 43. Rc3 {[%clk 0:00:28]}  Kf6 {[%clk 0:01:32]} 44. Kh1 {[%clk 0:00:24]}  Kg5 {[%clk 0:01:32]} 45. Rc6 {[%clk 0:00:19]}  Bxe3 {[%clk 0:01:31]} 46. Rxd6 {[%clk 0:00:19]}  Kg4 {[%clk 0:01:27]} 47. b6 {[%clk 0:00:19]}  Kh3 {[%clk 0:01:18]} 48. Rh6+ {[%clk 0:00:13]}  Bxh6 {[%clk 0:01:18]} 49. Kg1 {[%clk 0:00:13]}  Be3+ {[%clk 0:01:13]} 50. Kf1 {[%clk 0:00:14]}  Bxb6 {[%clk 0:00:49]} 51. Rxb6 {[%clk 0:00:15]}  Kxg3 {[%clk 0:00:50]} 52. d6 {[%clk 0:00:12]}  Kf3 {[%clk 0:00:50]} 53. Rb3+ {[%clk 0:00:12]}  Ke4 {[%clk 0:00:40]} 54. d7 {[%clk 0:00:13]}  Rd2 {[%clk 0:00:39]} 55. a7 {[%clk 0:00:13]} 1-0


[Site "https://www.chess.com"]

[Event "Titled Tuesday Blitz January 17 Late 2023"]
[White "Milikow, Yoav"]
[Black "Rojas Salas, Steven"]
[WhiteFideId "2822237"]
[BlackFideId "3819434"]
[WhiteElo "2394"]
[BlackElo "2217"]
[Result "0-1"]
[Round "07"]
[TimeControl "180+2"]
[Date "2023.01.17"]
[WhiteClock "0:00:46"]
[BlackClock "0:00:34"]

1. Nf3 {[%clk 0:03:00]}  d5 {[%clk 0:03:00]} 2. c4 {[%clk 0:03:00]}  e6 {[%clk 0:02:59]} 3. Qc2 {[%clk 0:02:59]}  Nf6 {[%clk 0:02:59]} 4. b3 {[%clk 0:02:59]}  d4 {[%clk 0:02:55]} 5. Bb2 {[%clk 0:02:59]}  c5 {[%clk 0:02:55]} 6. e4 {[%clk 0:02:59]}  Nc6 {[%clk 0:02:52]} 7. a3 {[%clk 0:03:00]}  e5 {[%clk 0:02:45]} 8. d3 {[%clk 0:03:01]}  a5 {[%clk 0:02:42]} 9. Be2 {[%clk 0:03:02]}  Bd6 {[%clk 0:02:40]} 10. O-O {[%clk 0:03:01]}  O-O {[%clk 0:02:40]} 11. Nfd2 {[%clk 0:03:00]}  Ne8 {[%clk 0:02:28]} 12. f3 {[%clk 0:03:00]}  Qg5 {[%clk 0:02:22]} 13. Rf2 {[%clk 0:02:51]}  f5 {[%clk 0:02:08]} 14. Bc1 {[%clk 0:02:52]}  f4 {[%clk 0:02:07]} 15. Nf1 {[%clk 0:02:53]}  Qg6 {[%clk 0:02:03]} 16. Kh1 {[%clk 0:02:53]}  Nd8 {[%clk 0:01:59]} 17. Bd1 {[%clk 0:02:53]}  Be7 {[%clk 0:01:57]} 18. a4 {[%clk 0:02:48]}  Ra6 {[%clk 0:01:57]} 19. Na3 {[%clk 0:02:48]}  Bh4 {[%clk 0:01:55]} 20. Nb5 {[%clk 0:02:47]}  Qh5 {[%clk 0:01:51]} 21. Ba3 {[%clk 0:02:42]}  Rh6 {[%clk 0:01:49]} 22. Bxc5 {[%clk 0:02:12]}  Bg3 {[%clk 0:01:49]} 23. Bxf8 {[%clk 0:02:11]}  Bxh2 {[%clk 0:01:47]} 24. g4 {[%clk 0:02:11]}  fxg3 {[%clk 0:01:48]} 25. Rxh2 {[%clk 0:02:08]}  gxh2 {[%clk 0:01:43]} 26. Be7 {[%clk 0:02:03]}  Nc6 {[%clk 0:01:23]} 27. Ba3 {[%clk 0:01:49]}  Qh3 {[%clk 0:01:21]} 28. Qf2 {[%clk 0:01:47]}  Nf6 {[%clk 0:01:06]} 29. Bc1 {[%clk 0:01:45]}  Rg6 {[%clk 0:01:01]} 30. Nxh2 {[%clk 0:01:28]}  Nh5 {[%clk 0:01:01]} 31. Qb2 {[%clk 0:00:51]}  Ng3+ {[%clk 0:00:58]} 32. Kg1 {[%clk 0:00:52]}  Nf1+ {[%clk 0:00:55]} 33. Kf2 {[%clk 0:00:47]}  Rg2+ {[%clk 0:00:37]} 34. Ke1 {[%clk 0:00:46]}  Qg3+ {[%clk 0:00:34]} 35. Kxf1 {[%clk 0:00:46]}  Rg1+ {[%clk 0:00:34]} 0-1


[Site "https://www.chess.com"]

[Event "Titled Tuesday Blitz January 17 Late 2023"]
[White "Vovk, Orest"]
[Black "Di Berardino, Diego Rafael"]
[WhiteFideId "14113490"]
[BlackFideId "2105446"]
[WhiteElo "2315"]
[BlackElo "2479"]
[Result "0-1"]
[Round "07"]
[TimeControl "180+2"]
[Date "2023.01.17"]
[WhiteClock "0:00:01"]
[BlackClock "0:00:05"]

1. h4 {[%clk 0:02:58]}  d5 {[%clk 0:02:58]} 2. h5 {[%clk 0:02:57]}  e5 {[%clk 0:02:58]} 3. h6 {[%clk 0:02:57]}  Nxh6 {[%clk 0:02:58]} 4. d4 {[%clk 0:02:57]}  e4 {[%clk 0:02:38]} 5. Bxh6 {[%clk 0:02:54]}  gxh6 {[%clk 0:02:39]} 6. e3 {[%clk 0:02:55]}  Be6 {[%clk 0:02:16]} 7. c4 {[%clk 0:02:48]}  dxc4 {[%clk 0:02:07]} 8. Nc3 {[%clk 0:02:47]}  Bb4 {[%clk 0:01:49]} 9. Qa4+ {[%clk 0:02:46]}  Nc6 {[%clk 0:01:48]} 10. Rxh6 {[%clk 0:02:32]}  Qg5 {[%clk 0:01:46]} 11. Rxe6+ {[%clk 0:02:01]}  fxe6 {[%clk 0:01:46]} 12. Nh3 {[%clk 0:02:02]}  Qa5 {[%clk 0:01:30]} 13. Qc2 {[%clk 0:01:57]}  O-O-O {[%clk 0:01:27]} 14. Bxc4 {[%clk 0:01:56]}  e5 {[%clk 0:01:24]} 15. d5 {[%clk 0:01:50]}  Ne7 {[%clk 0:01:01]} 16. Rd1 {[%clk 0:01:17]}  Nxd5 {[%clk 0:00:48]} 17. Bxd5 {[%clk 0:00:44]}  Rxd5 {[%clk 0:00:47]} 18. Rxd5 {[%clk 0:00:34]}  Qxd5 {[%clk 0:00:45]} 19. Ng5 {[%clk 0:00:33]}  Bxc3+ {[%clk 0:00:38]} 20. bxc3 {[%clk 0:00:29]}  Rg8 {[%clk 0:00:23]} 21. Nxe4 {[%clk 0:00:28]}  Rxg2 {[%clk 0:00:22]} 22. c4 {[%clk 0:00:20]}  Rg1+ {[%clk 0:00:18]} 23. Ke2 {[%clk 0:00:20]}  Qd7 {[%clk 0:00:16]} 24. Nf6 {[%clk 0:00:13]}  Qe6 {[%clk 0:00:11]} 25. Nd5 {[%clk 0:00:09]}  e4 {[%clk 0:00:06]} 26. Kd2 {[%clk 0:00:02]}  b6 {[%clk 0:00:07]} 27. Qa4 {[%clk 0:00:01]}  c6 {[%clk 0:00:05]} 0-1


[Site "https://www.chess.com"]